[Event "Titled Tuesday Blitz October 25 Late 2022"]
[White "Clawitter, Craig"]
[Black "D`Arruda, Ricardo D."]
[WhiteFideId "2023105"]
[BlackFideId "100692"]
[WhiteElo "2261"]
[BlackElo "2446"]
[Result "0-1"]
[Round "06"]
[TimeControl "180+1"]
[Date "2022.10.26"]
[WhiteClock "0:00:04"]
[BlackClock "0:00:39"]

1. e4 {[%clk 0:03:00]}  c5 {[%clk 0:02:53]} 2. Nf3 {[%clk 0:03:01]}  Nc6 {[%clk 0:02:53]} 3. d4 {[%clk 0:03:01]}  cxd4 {[%clk 0:02:53]} 4. Nxd4 {[%clk 0:03:02]}  e5 {[%clk 0:02:54]} 5. Nb5 {[%clk 0:03:01]}  a6 {[%clk 0:02:53]} 6. Nd6+ {[%clk 0:03:01]}  Bxd6 {[%clk 0:02:53]} 7. Qxd6 {[%clk 0:03:02]}  Qe7 {[%clk 0:02:54]} 8. Qd1 {[%clk 0:03:02]}  Nf6 {[%clk 0:02:53]} 9. Nc3 {[%clk 0:03:02]}  d6 {[%clk 0:02:53]} 10. Bg5 {[%clk 0:02:51]}  Be6 {[%clk 0:02:51]} 11. Nd5 {[%clk 0:02:38]}  Bxd5 {[%clk 0:02:51]} 12. exd5 {[%clk 0:02:39]}  Nb8 {[%clk 0:02:51]} 13. c4 {[%clk 0:02:31]}  h6 {[%clk 0:02:51]} 14. Be3 {[%clk 0:02:31]}  Nbd7 {[%clk 0:02:50]} 15. Be2 {[%clk 0:02:30]}  O-O {[%clk 0:02:49]} 16. O-O {[%clk 0:02:30]}  b6 {[%clk 0:02:49]} 17. f3 {[%clk 0:02:17]}  Rfc8 {[%clk 0:02:48]} 18. Qd2 {[%clk 0:02:10]}  a5 {[%clk 0:02:47]} 19. b3 {[%clk 0:02:07]}  Qd8 {[%clk 0:02:37]} 20. Rac1 {[%clk 0:02:01]}  Qe7 {[%clk 0:02:23]} 21. Rc2 {[%clk 0:02:01]}  Qd8 {[%clk 0:02:22]} 22. Rfc1 {[%clk 0:02:01]}  Qe7 {[%clk 0:02:22]} 23. Qe1 {[%clk 0:01:50]}  Nh5 {[%clk 0:02:18]} 24. g3 {[%clk 0:01:39]}  f5 {[%clk 0:02:13]} 25. Bf2 {[%clk 0:01:24]}  f4 {[%clk 0:02:11]} 26. g4 {[%clk 0:01:16]}  Nhf6 {[%clk 0:02:10]} 27. Bd3 {[%clk 0:01:17]}  Nc5 {[%clk 0:02:05]} 28. Bf5 {[%clk 0:01:12]}  Re8 {[%clk 0:02:05]} 29. h4 {[%clk 0:01:01]}  e4 {[%clk 0:01:57]} 30. Bxc5 {[%clk 0:00:55]}  bxc5 {[%clk 0:01:54]} 31. g5 {[%clk 0:00:55]}  hxg5 {[%clk 0:01:53]} 32. hxg5 {[%clk 0:00:55]}  Nh7 {[%clk 0:01:48]} 33. Bxh7+ {[%clk 0:00:25]}  Kxh7 {[%clk 0:01:49]} 34. Qh4+ {[%clk 0:00:25]}  Kg6 {[%clk 0:01:49]} 35. Qxf4 {[%clk 0:00:07]}  exf3 {[%clk 0:01:23]} 36. Qxf3 {[%clk 0:00:07]}  Qe3+ {[%clk 0:01:23]} 37. Qxe3 {[%clk 0:00:07]}  Rxe3 {[%clk 0:01:24]} 38. Rf2 {[%clk 0:00:06]}  Rae8 {[%clk 0:01:20]} 39. Kf1 {[%clk 0:00:07]}  Kxg5 {[%clk 0:01:16]} 40. Rcc2 {[%clk 0:00:07]}  Re1+ {[%clk 0:01:01]} 41. Kg2 {[%clk 0:00:07]}  a4 {[%clk 0:00:55]} 42. bxa4 {[%clk 0:00:07]}  Ra8 {[%clk 0:00:47]} 43. Rc3 {[%clk 0:00:07]}  Rxa4 {[%clk 0:00:45]} 44. Rg3+ {[%clk 0:00:07]}  Kh6 {[%clk 0:00:45]} 45. Rf4 {[%clk 0:00:06]}  Rxa2+ {[%clk 0:00:44]} 46. Kh3 {[%clk 0:00:05]}  g5 {[%clk 0:00:39]} 47. Rf6+ {[%clk 0:00:04]}  Kh5 {[%clk 0:00:39]} 0-1


[Site "https://www.chess.com"]

[Event "Titled Tuesday Blitz October 25 Late 2022"]
[White "Cortes Orihuela, Javier"]
[Black "Manukian, Artak"]
[WhiteFideId "3414329"]
[BlackFideId "13301373"]
[WhiteElo "2080"]
[BlackElo "2492"]
[Result "0-1"]
[Round "06"]
[TimeControl "180+1"]
[Date "2022.10.26"]
[WhiteClock "0:00:06"]
[BlackClock "0:00:21"]

1. d4 {[%clk 0:03:00]}  d5 {[%clk 0:02:59]} 2. c4 {[%clk 0:03:01]}  dxc4 {[%clk 0:02:59]} 3. e3 {[%clk 0:03:00]}  e5 {[%clk 0:02:58]} 4. Bxc4 {[%clk 0:03:00]}  exd4 {[%clk 0:02:59]} 5. exd4 {[%clk 0:03:01]}  Nf6 {[%clk 0:02:59]} 6. Nf3 {[%clk 0:03:01]}  Be7 {[%clk 0:02:59]} 7. O-O {[%clk 0:03:01]}  O-O {[%clk 0:03:00]} 8. Nc3 {[%clk 0:03:01]}  Bg4 {[%clk 0:03:00]} 9. h3 {[%clk 0:03:00]}  Bh5 {[%clk 0:03:00]} 10. g4 {[%clk 0:02:57]}  Nxg4 {[%clk 0:02:57]} 11. hxg4 {[%clk 0:02:57]}  Bxg4 {[%clk 0:02:58]} 12. Bf4 {[%clk 0:02:43]}  Bd6 {[%clk 0:02:49]} 13. Bg3 {[%clk 0:02:18]}  Nc6 {[%clk 0:02:46]} 14. d5 {[%clk 0:02:07]}  Ne5 {[%clk 0:02:23]} 15. Be2 {[%clk 0:02:04]}  Nxf3+ {[%clk 0:02:16]} 16. Bxf3 {[%clk 0:02:05]}  Bxg3 {[%clk 0:02:15]} 17. fxg3 {[%clk 0:01:56]}  Bf5 {[%clk 0:02:11]} 18. Be4 {[%clk 0:01:49]}  Bxe4 {[%clk 0:02:03]} 19. Nxe4 {[%clk 0:01:50]}  Re8 {[%clk 0:02:03]} 20. Qf3 {[%clk 0:01:45]}  f6 {[%clk 0:01:45]} 21. Rad1 {[%clk 0:01:42]}  Qe7 {[%clk 0:01:39]} 22. Rde1 {[%clk 0:01:13]}  Qb4 {[%clk 0:01:35]} 23. Qg4 {[%clk 0:00:51]}  Kh8 {[%clk 0:01:14]} 24. Re2 {[%clk 0:00:26]}  a5 {[%clk 0:00:59]} 25. Rf4 {[%clk 0:00:16]}  Qd4+ {[%clk 0:00:53]} 26. Kg2 {[%clk 0:00:15]}  Qxd5 {[%clk 0:00:53]} 27. Qf5 {[%clk 0:00:12]}  Re5 {[%clk 0:00:51]} 28. Qg4 {[%clk 0:00:09]}  f5 {[%clk 0:00:35]} 29. Qf3 {[%clk 0:00:09]}  Rae8 {[%clk 0:00:29]} 30. g4 {[%clk 0:00:06]}  Rxe4 {[%clk 0:00:23]} 31. Rfxe4 {[%clk 0:00:06]}  fxe4 {[%clk 0:00:21]} 0-1


[Site "https://www.chess.com"]

[Event "Titled Tuesday Blitz October 25 Late 2022"]
[White "Culum, Sanjin"]
[Black "Saucey, Michel"]
[WhiteFideId "14420937"]
[BlackFideId "601845"]
[WhiteElo "2180"]
[BlackElo "2253"]
[Result "1-0"]
[Round "06"]
[TimeControl "180+1"]
[Date "2022.10.26"]
[WhiteClock "0:01:53"]
[BlackClock "0:00:44"]

1. d4 {[%clk 0:03:00]}  d5 {[%clk 0:02:58]} 2. Nf3 {[%clk 0:02:59]}  e6 {[%clk 0:02:57]} 3. c4 {[%clk 0:02:59]}  Nf6 {[%clk 0:02:56]} 4. g3 {[%clk 0:03:00]}  Bb4+ {[%clk 0:02:54]} 5. Bd2 {[%clk 0:03:00]}  Be7 {[%clk 0:02:53]} 6. Bg2 {[%clk 0:03:01]}  Nbd7 {[%clk 0:02:49]} 7. O-O {[%clk 0:03:02]}  c6 {[%clk 0:02:49]} 8. Qc2 {[%clk 0:03:02]}  O-O {[%clk 0:02:46]} 9. Rd1 {[%clk 0:03:03]}  b6 {[%clk 0:02:42]} 10. Bf4 {[%clk 0:03:03]}  Ba6 {[%clk 0:02:36]} 11. b3 {[%clk 0:02:56]}  Rc8 {[%clk 0:02:34]} 12. Nc3 {[%clk 0:02:54]}  c5 {[%clk 0:02:30]} 13. dxc5 {[%clk 0:02:50]}  Bxc5 {[%clk 0:02:15]} 14. Qb2 {[%clk 0:02:47]}  Qe7 {[%clk 0:02:07]} 15. cxd5 {[%clk 0:02:45]}  exd5 {[%clk 0:02:01]} 16. e3 {[%clk 0:02:42]}  Bb7 {[%clk 0:01:43]} 17. a3 {[%clk 0:02:35]}  a5 {[%clk 0:01:41]} 18. Nd4 {[%clk 0:02:31]}  Ne4 {[%clk 0:01:35]} 19. Nxe4 {[%clk 0:02:22]}  dxe4 {[%clk 0:01:34]} 20. Nf5 {[%clk 0:02:19]}  Qf6 {[%clk 0:01:33]} 21. Qxf6 {[%clk 0:02:09]}  Nxf6 {[%clk 0:01:33]} 22. Bd6 {[%clk 0:02:08]}  Bxd6 {[%clk 0:01:21]} 23. Nxd6 {[%clk 0:02:08]}  Rc7 {[%clk 0:01:21]} 24. Nxb7 {[%clk 0:02:07]}  Rxb7 {[%clk 0:01:21]} 25. Rac1 {[%clk 0:02:08]}  g6 {[%clk 0:01:05]} 26. Rc6 {[%clk 0:02:05]}  Kg7 {[%clk 0:01:04]} 27. Rdd6 {[%clk 0:02:04]}  Ne8 {[%clk 0:00:57]} 28. Rd8 {[%clk 0:02:00]}  f5 {[%clk 0:00:53]} 29. Rcc8 {[%clk 0:02:00]}  Re7 {[%clk 0:00:52]} 30. Bf1 {[%clk 0:01:59]}  Rc7 {[%clk 0:00:44]} 31. Rb8 {[%clk 0:01:53]} 1-0


[Site "https://www.chess.com"]

[Event "Titled Tuesday Blitz October 25 Late 2022"]
[White "Dilmukhametov, Artur"]
[Black "Papasimakopoulos, Alexandros"]
[WhiteFideId "24179922"]
[BlackFideId "4244125"]
[WhiteElo "2197"]
[BlackElo "2357"]
[Result "0-1"]
[Round "06"]
[TimeControl "180+1"]
[Date "2022.10.26"]
[WhiteClock "0:00:03"]
[BlackClock "0:01:45"]

1. d4 {[%clk 0:02:58]}  e6 {[%clk 0:02:46]} 2. e4 {[%clk 0:02:54]}  d5 {[%clk 0:02:46]} 3. Nd2 {[%clk 0:02:54]}  Nf6 {[%clk 0:02:46]} 4. e5 {[%clk 0:02:54]}  Nfd7 {[%clk 0:02:46]} 5. Bd3 {[%clk 0:02:54]}  c5 {[%clk 0:02:47]} 6. c3 {[%clk 0:02:55]}  Nc6 {[%clk 0:02:48]} 7. Ne2 {[%clk 0:02:54]}  cxd4 {[%clk 0:02:48]} 8. cxd4 {[%clk 0:02:54]}  f6 {[%clk 0:02:49]} 9. Nf4 {[%clk 0:02:46]}  Nxd4 {[%clk 0:02:49]} 10. Qh5+ {[%clk 0:02:45]}  Ke7 {[%clk 0:02:49]} 11. exf6+ {[%clk 0:02:46]}  Nxf6 {[%clk 0:02:49]} 12. Ng6+ {[%clk 0:02:47]}  hxg6 {[%clk 0:02:50]} 13. Qxh8 {[%clk 0:02:48]}  Kf7 {[%clk 0:02:50]} 14. Qh4 {[%clk 0:02:48]}  e5 {[%clk 0:02:51]} 15. Nf3 {[%clk 0:02:48]}  Nxf3+ {[%clk 0:02:51]} 16. gxf3 {[%clk 0:02:49]}  Bf5 {[%clk 0:02:51]} 17. Bxf5 {[%clk 0:02:49]}  gxf5 {[%clk 0:02:52]} 18. Bg5 {[%clk 0:02:50]}  Qa5+ {[%clk 0:02:53]} 19. Kf1 {[%clk 0:02:51]}  g6 {[%clk 0:02:53]} 20. Rc1 {[%clk 0:02:26]}  Be7 {[%clk 0:02:46]} 21. Kg2 {[%clk 0:02:21]}  Rd8 {[%clk 0:02:45]} 22. Rhg1 {[%clk 0:01:44]}  d4 {[%clk 0:02:43]} 23. Kh1 {[%clk 0:01:44]}  Rg8 {[%clk 0:02:34]} 24. Bxf6 {[%clk 0:01:41]}  Bxf6 {[%clk 0:02:34]} 25. Qh7+ {[%clk 0:01:39]}  Rg7 {[%clk 0:02:32]} 26. Qh8 {[%clk 0:01:40]}  Qd8 {[%clk 0:02:27]} 27. Rc8 {[%clk 0:01:15]}  Qxh8 {[%clk 0:02:26]} 28. Rxh8 {[%clk 0:01:16]}  Ke6 {[%clk 0:02:15]} 29. h4 {[%clk 0:00:51]}  d3 {[%clk 0:02:03]} 30. Rd1 {[%clk 0:00:25]}  Rd7 {[%clk 0:02:03]} 31. Re8+ {[%clk 0:00:19]}  Kf7 {[%clk 0:02:02]} 32. Ra8 {[%clk 0:00:14]}  Bxh4 {[%clk 0:02:02]} 33. Rxa7 {[%clk 0:00:14]}  Bxf2 {[%clk 0:02:02]} 34. Ra3 {[%clk 0:00:14]}  e4 {[%clk 0:02:01]} 35. Kg2 {[%clk 0:00:14]}  Bc5 {[%clk 0:01:58]} 36. Rc3 {[%clk 0:00:11]}  b6 {[%clk 0:01:51]} 37. fxe4 {[%clk 0:00:11]}  fxe4 {[%clk 0:01:51]} 38. Rc4 {[%clk 0:00:12]}  e3 {[%clk 0:01:50]} 39. Rf4+ {[%clk 0:00:05]}  Kg7 {[%clk 0:01:50]} 40. Kf3 {[%clk 0:00:02]}  e2 {[%clk 0:01:50]} 41. Rh1 {[%clk 0:00:03]}  Re7 {[%clk 0:01:46]} 42. Re4 {[%clk 0:00:03]}  Rxe4 {[%clk 0:01:45]} 0-1


[Site "https://www.chess.com"]

[Event "Titled Tuesday Blitz October 25 Late 2022"]
[White "Dzierzak, Radoslaw"]
[Black "Shapiro, Daniel"]
[WhiteFideId "1161407"]
[BlackFideId "2001780"]
[WhiteElo "2111"]
[BlackElo "2242"]
[Result "0-1"]
[Round "06"]
[TimeControl "180+1"]
[Date "2022.10.26"]
[WhiteClock "0:00:30"]
[BlackClock "0:00:52"]

1. e4 {[%clk 0:03:00]}  e5 {[%clk 0:02:59]} 2. Nf3 {[%clk 0:03:01]}  Nc6 {[%clk 0:02:59]} 3. Bc4 {[%clk 0:03:01]}  Be7 {[%clk 0:02:58]} 4. O-O {[%clk 0:03:01]}  d6 {[%clk 0:02:58]} 5. h3 {[%clk 0:02:58]}  Nf6 {[%clk 0:02:58]} 6. d3 {[%clk 0:02:57]}  h6 {[%clk 0:02:56]} 7. a4 {[%clk 0:02:57]}  O-O {[%clk 0:02:53]} 8. Re1 {[%clk 0:02:56]}  Be6 {[%clk 0:02:53]} 9. Nbd2 {[%clk 0:02:55]}  Qd7 {[%clk 0:02:48]} 10. Kh2 {[%clk 0:02:42]}  Nh7 {[%clk 0:02:46]} 11. c3 {[%clk 0:02:38]}  f5 {[%clk 0:02:43]} 12. exf5 {[%clk 0:02:24]}  Rxf5 {[%clk 0:02:43]} 13. Bxe6+ {[%clk 0:02:23]}  Qxe6 {[%clk 0:02:40]} 14. d4 {[%clk 0:02:24]}  Raf8 {[%clk 0:02:28]} 15. c4 {[%clk 0:02:20]}  Qf7 {[%clk 0:02:22]} 16. d5 {[%clk 0:02:13]}  Nd4 {[%clk 0:02:10]} 17. Nxd4 {[%clk 0:02:12]}  exd4 {[%clk 0:02:11]} 18. f3 {[%clk 0:02:11]}  Bf6 {[%clk 0:01:54]} 19. Ne4 {[%clk 0:02:01]}  Be5+ {[%clk 0:01:53]} 20. Kh1 {[%clk 0:01:59]}  Qh5 {[%clk 0:01:44]} 21. Bd2 {[%clk 0:01:24]}  Rxf3 {[%clk 0:01:25]} 22. Nf2 {[%clk 0:01:00]}  Qh4 {[%clk 0:01:03]} 23. Rf1 {[%clk 0:00:43]}  Rxf2 {[%clk 0:01:00]} 24. Rxf2 {[%clk 0:00:35]}  Rxf2 {[%clk 0:00:54]} 25. Be1 {[%clk 0:00:35]}  Qf4 {[%clk 0:00:52]} 26. Kg1 {[%clk 0:00:30]}  Rf1# {[%clk 0:00:52]} 0-1


[Site "https://www.chess.com"]

[Event "Titled Tuesday Blitz October 25 Late 2022"]
[White "Estrada Nieto, Julian"]
[Black "Sargsyan, Anna M."]
[WhiteFideId "5101018"]
[BlackFideId "13308130"]
[WhiteElo "2252"]
[BlackElo "2284"]
[Result "1/2-1/2"]
[Round "06"]
[TimeControl "180+1"]
[Date "2022.10.26"]
[WhiteClock "0:00:08"]
[BlackClock "0:00:04"]

1. e4 {[%clk 0:03:00]}  c6 {[%clk 0:02:57]} 2. d4 {[%clk 0:03:00]}  d5 {[%clk 0:02:58]} 3. Nc3 {[%clk 0:02:58]}  dxe4 {[%clk 0:02:58]} 4. Nxe4 {[%clk 0:02:59]}  Bf5 {[%clk 0:02:57]} 5. Ng3 {[%clk 0:02:59]}  Bg6 {[%clk 0:02:57]} 6. h4 {[%clk 0:03:00]}  h6 {[%clk 0:02:57]} 7. Nf3 {[%clk 0:03:01]}  e6 {[%clk 0:02:56]} 8. h5 {[%clk 0:03:02]}  Bh7 {[%clk 0:02:56]} 9. Bd3 {[%clk 0:03:02]}  Bxd3 {[%clk 0:02:56]} 10. Qxd3 {[%clk 0:03:03]}  Nf6 {[%clk 0:02:57]} 11. Bd2 {[%clk 0:03:04]}  c5 {[%clk 0:02:57]} 12. O-O-O {[%clk 0:02:58]}  Nc6 {[%clk 0:02:58]} 13. Bc3 {[%clk 0:02:53]}  Qd5 {[%clk 0:02:57]} 14. dxc5 {[%clk 0:02:43]}  Qxd3 {[%clk 0:02:46]} 15. Rxd3 {[%clk 0:02:41]}  Bxc5 {[%clk 0:02:47]} 16. Bxf6 {[%clk 0:02:37]}  gxf6 {[%clk 0:02:48]} 17. Ne4 {[%clk 0:02:37]}  Be7 {[%clk 0:02:49]} 18. Nd6+ {[%clk 0:02:36]}  Bxd6 {[%clk 0:02:48]} 19. Rxd6 {[%clk 0:02:37]}  Ke7 {[%clk 0:02:47]} 20. Rhd1 {[%clk 0:02:36]}  Rad8 {[%clk 0:02:47]} 21. Rxd8 {[%clk 0:02:36]}  Nxd8 {[%clk 0:02:48]} 22. Rd3 {[%clk 0:02:22]}  Rg8 {[%clk 0:02:48]} 23. g3 {[%clk 0:02:22]}  Rg4 {[%clk 0:02:46]} 24. Nd4 {[%clk 0:02:08]}  Rg5 {[%clk 0:02:43]} 25. Rc3 {[%clk 0:01:59]}  Rxh5 {[%clk 0:02:34]} 26. Rc7+ {[%clk 0:01:58]}  Kd6 {[%clk 0:02:34]} 27. Rc8 {[%clk 0:01:59]}  Kd7 {[%clk 0:02:25]} 28. Ra8 {[%clk 0:01:58]}  a6 {[%clk 0:02:25]} 29. Kd2 {[%clk 0:01:57]}  Rh1 {[%clk 0:02:13]} 30. Nb3 {[%clk 0:01:47]}  Rf1 {[%clk 0:02:02]} 31. Ke2 {[%clk 0:01:46]}  Rb1 {[%clk 0:02:01]} 32. Nc5+ {[%clk 0:01:45]}  Kc7 {[%clk 0:02:01]} 33. Nd3 {[%clk 0:01:40]}  h5 {[%clk 0:01:27]} 34. a4 {[%clk 0:01:33]}  h4 {[%clk 0:01:23]} 35. gxh4 {[%clk 0:01:32]}  Rh1 {[%clk 0:01:23]} 36. b3 {[%clk 0:01:27]}  Rxh4 {[%clk 0:01:23]} 37. Kd2 {[%clk 0:01:12]}  Rd4 {[%clk 0:01:19]} 38. Kc3 {[%clk 0:01:11]}  Rd5 {[%clk 0:01:17]} 39. f4 {[%clk 0:01:10]}  b6 {[%clk 0:00:40]} 40. Nb4 {[%clk 0:01:01]}  Rd6 {[%clk 0:00:25]} 41. Ra7+ {[%clk 0:00:45]}  Kb8 {[%clk 0:00:23]} 42. Re7 {[%clk 0:00:43]}  b5 {[%clk 0:00:13]} 43. a5 {[%clk 0:00:40]}  f5 {[%clk 0:00:06]} 44. Nd3 {[%clk 0:00:27]}  Nc6 {[%clk 0:00:02]} 45. Rxf7 {[%clk 0:00:27]}  Nxa5 {[%clk 0:00:03]} 46. Ne5 {[%clk 0:00:24]}  Nc6 {[%clk 0:00:03]} 47. Nd7+ {[%clk 0:00:22]}  Kc8 {[%clk 0:00:03]} 48. Nc5 {[%clk 0:00:20]}  Nd8 {[%clk 0:00:02]} 49. Ra7 {[%clk 0:00:18]}  Rc6 {[%clk 0:00:02]} 50. b4 {[%clk 0:00:18]}  a5 {[%clk 0:00:01]} 51. Rxa5 {[%clk 0:00:17]}  e5 {[%clk 0:00:01]} 52. fxe5 {[%clk 0:00:16]}  Ne6 {[%clk 0:00:02]} 53. Ra8+ {[%clk 0:00:14]}  Kc7 {[%clk 0:00:02]} 54. Ra7+ {[%clk 0:00:11]}  Kb8 {[%clk 0:00:02]} 55. Rf7 {[%clk 0:00:10]}  Nxc5 {[%clk 0:00:02]} 56. bxc5 {[%clk 0:00:10]}  Rxc5+ {[%clk 0:00:03]} 57. Kd4 {[%clk 0:00:11]}  Rxc2 {[%clk 0:00:03]} 58. Rxf5 {[%clk 0:00:11]}  Kc7 {[%clk 0:00:04]} 59. e6 {[%clk 0:00:09]}  Kd6 {[%clk 0:00:04]} 60. Rxb5 {[%clk 0:00:08]}  Kxe6 {[%clk 0:00:04]} 61. Rb6+ {[%clk 0:00:08]} 1/2-1/2


[Site "https://www.chess.com"]

[Event "Titled Tuesday Blitz October 25 Late 2022"]
[White "Fernandez De La Vara, Arnaldo"]
[Black "Ferreira, Vitor Hugo Vieira"]
[WhiteFideId "3518388"]
[BlackFideId "2119765"]
[WhiteElo "2387"]
[BlackElo "2168"]
[Result "1-0"]
[Round "06"]
[TimeControl "180+1"]
[Date "2022.10.26"]
[WhiteClock "0:00:51"]
[BlackClock "0:00:01"]

1. Nf3 {[%clk 0:03:00]}  Nf6 {[%clk 0:02:59]} 2. b3 {[%clk 0:03:01]}  d5 {[%clk 0:02:58]} 3. c4 {[%clk 0:03:01]}  e6 {[%clk 0:02:55]} 4. Bb2 {[%clk 0:03:01]}  c6 {[%clk 0:02:55]} 5. g3 {[%clk 0:03:02]}  Nbd7 {[%clk 0:02:54]} 6. Bg2 {[%clk 0:03:02]}  Be7 {[%clk 0:02:53]} 7. O-O {[%clk 0:03:02]}  O-O {[%clk 0:02:53]} 8. Nc3 {[%clk 0:03:02]}  b6 {[%clk 0:02:52]} 9. d4 {[%clk 0:03:02]}  Bb7 {[%clk 0:02:52]} 10. Rc1 {[%clk 0:02:50]}  Rc8 {[%clk 0:02:51]} 11. Qc2 {[%clk 0:02:37]}  c5 {[%clk 0:02:51]} 12. dxc5 {[%clk 0:02:35]}  bxc5 {[%clk 0:02:50]} 13. cxd5 {[%clk 0:02:35]}  exd5 {[%clk 0:02:50]} 14. Rfd1 {[%clk 0:02:33]}  Qa5 {[%clk 0:02:49]} 15. Qb1 {[%clk 0:02:30]}  Nb6 {[%clk 0:02:47]} 16. Nh4 {[%clk 0:02:24]}  Rfe8 {[%clk 0:02:36]} 17. Nf5 {[%clk 0:02:23]}  Bf8 {[%clk 0:02:35]} 18. e3 {[%clk 0:02:23]}  Ba8 {[%clk 0:02:29]} 19. Ne2 {[%clk 0:02:22]}  Ne4 {[%clk 0:02:23]} 20. Qa1 {[%clk 0:02:01]}  g6 {[%clk 0:02:01]} 21. Ng7 {[%clk 0:01:40]}  Re7 {[%clk 0:01:47]} 22. Nf4 {[%clk 0:01:40]}  c4 {[%clk 0:01:13]} 23. bxc4 {[%clk 0:01:23]}  Nxc4 {[%clk 0:01:12]} 24. Bd4 {[%clk 0:01:23]}  Ned2 {[%clk 0:00:33]} 25. h4 {[%clk 0:01:16]}  h5 {[%clk 0:00:32]} 26. Nfxh5 {[%clk 0:01:13]}  gxh5 {[%clk 0:00:30]} 27. Nxh5 {[%clk 0:01:14]}  Rc6 {[%clk 0:00:16]} 28. Bc3 {[%clk 0:01:01]}  Qa3 {[%clk 0:00:11]} 29. Bxd2 {[%clk 0:00:59]}  Nxd2 {[%clk 0:00:10]} 30. Rxc6 {[%clk 0:00:58]}  Bxc6 {[%clk 0:00:06]} 31. Nf6+ {[%clk 0:00:58]}  Kh8 {[%clk 0:00:05]} 32. Nh5+ {[%clk 0:00:53]}  Kh7 {[%clk 0:00:03]} 33. Rxd2 {[%clk 0:00:53]}  Qd6 {[%clk 0:00:01]} 34. Nf6+ {[%clk 0:00:51]} 1-0


[Site "https://www.chess.com"]

[Event "Titled Tuesday Blitz October 25 Late 2022"]
[White "Garayev, Kanan"]
[Black "Zochowski, Kacper"]
[WhiteFideId "13406671"]
[BlackFideId "1125494"]
[WhiteElo "2244"]
[BlackElo "2292"]
[Result "0-1"]
[Round "06"]
[TimeControl "180+1"]
[Date "2022.10.26"]
[WhiteClock "0:00:01"]
[BlackClock "0:01:05"]

1. e4 {[%clk 0:02:56]}  d6 {[%clk 0:03:00]} 2. d4 {[%clk 0:02:55]}  g6 {[%clk 0:03:00]} 3. Nc3 {[%clk 0:02:55]}  Bg7 {[%clk 0:03:01]} 4. g3 {[%clk 0:02:56]}  b6 {[%clk 0:02:54]} 5. Bg2 {[%clk 0:02:55]}  Bb7 {[%clk 0:02:55]} 6. Nge2 {[%clk 0:02:56]}  Nd7 {[%clk 0:02:55]} 7. O-O {[%clk 0:02:56]}  e5 {[%clk 0:02:55]} 8. Be3 {[%clk 0:02:55]}  Ngf6 {[%clk 0:02:53]} 9. h3 {[%clk 0:02:54]}  O-O {[%clk 0:02:53]} 10. d5 {[%clk 0:02:51]}  a6 {[%clk 0:02:49]} 11. f4 {[%clk 0:02:50]}  exf4 {[%clk 0:02:48]} 12. gxf4 {[%clk 0:02:51]}  Re8 {[%clk 0:02:47]} 13. Bd4 {[%clk 0:02:08]}  b5 {[%clk 0:02:42]} 14. a3 {[%clk 0:02:07]}  Nc5 {[%clk 0:02:35]} 15. Bxc5 {[%clk 0:02:01]}  dxc5 {[%clk 0:02:30]} 16. e5 {[%clk 0:02:02]}  Nh5 {[%clk 0:02:29]} 17. b4 {[%clk 0:01:51]}  cxb4 {[%clk 0:02:05]} 18. axb4 {[%clk 0:01:52]}  f6 {[%clk 0:02:06]} 19. e6 {[%clk 0:01:45]}  f5 {[%clk 0:02:05]} 20. Bf3 {[%clk 0:01:31]}  Nxf4 {[%clk 0:02:00]} 21. Nxf4 {[%clk 0:01:28]}  Bxc3 {[%clk 0:01:59]} 22. Ra3 {[%clk 0:01:23]}  Bxb4 {[%clk 0:01:56]} 23. Rd3 {[%clk 0:01:24]}  Bd6 {[%clk 0:01:52]} 24. Bg2 {[%clk 0:01:18]}  Qg5 {[%clk 0:01:45]} 25. Qd2 {[%clk 0:01:06]}  Rad8 {[%clk 0:01:34]} 26. Qf2 {[%clk 0:00:55]}  Qe7 {[%clk 0:01:31]} 27. Kh1 {[%clk 0:00:49]}  Be5 {[%clk 0:01:31]} 28. Re1 {[%clk 0:00:41]}  Bg7 {[%clk 0:01:30]} 29. Qa7 {[%clk 0:00:38]}  Rb8 {[%clk 0:01:28]} 30. d6 {[%clk 0:00:26]}  cxd6 {[%clk 0:01:28]} 31. Bxb7 {[%clk 0:00:24]}  Qxb7+ {[%clk 0:01:25]} 32. Qxb7 {[%clk 0:00:23]}  Rxb7 {[%clk 0:01:26]} 33. Rxd6 {[%clk 0:00:21]}  a5 {[%clk 0:01:26]} 34. Nd5 {[%clk 0:00:19]}  a4 {[%clk 0:01:22]} 35. e7 {[%clk 0:00:18]}  Kf7 {[%clk 0:01:22]} 36. Ra6 {[%clk 0:00:17]}  Rd7 {[%clk 0:01:18]} 37. c4 {[%clk 0:00:13]}  bxc4 {[%clk 0:01:17]} 38. Nb4 {[%clk 0:00:09]}  Rexe7 {[%clk 0:01:16]} 39. Rxe7+ {[%clk 0:00:09]}  Rxe7 {[%clk 0:01:16]} 40. Rxa4 {[%clk 0:00:09]}  c3 {[%clk 0:01:15]} 41. Ra6 {[%clk 0:00:05]}  Rb7 {[%clk 0:01:13]} 42. Nd3 {[%clk 0:00:02]}  Rd7 {[%clk 0:01:10]} 43. Nb4 {[%clk 0:00:01]}  Rd4 {[%clk 0:01:05]} 0-1


[Site "https://www.chess.com"]